fUST/lending_fUST_20250531
["ID","MTS","AMOUNT","RATE_DAILY","PERIOD"]
[363309465,1748668238080,-599.7721329,0.00021089,2]
[363309466,1748668238090,-3000.0,0.0002109,2]
[363309467,1748668238099,-250.0,0.00021098,2]
[363309468,1748668238109,-208.566,0.00021098,2]
[363309469,1748668238119,-238.354,0.00021098,2]
[363309470,1748668238128,-250.0,0.00021098,2]
[363309471,1748668238138,-162.962,0.00021098,2]
[363309472,1748668238147,-257.794,0.00021098,2]
[363309473,1748668238157,-242.0,0.00021098,2]
[363309474,1748668238166,-215.257,0.00021098,2]
[363309475,1748668238175,-962.0,0.00021098,2]
[363309476,1748668238184,-3000.0,0.000211,2]
[363309477,1748668238194,-151.0,0.000211,3]
[363309478,1748668238204,-1595.88,0.00021106,2]
[363309479,1748668238215,-606.84,0.00021106,2]
[363309480,1748668238224,-2064.51,0.00021106,2]
[363309481,1748668238233,-910.53,0.00021106,2]
[363309482,1748668238243,-875.57,0.00021106,2]
[363309483,1748668238252,-430.0,0.00021107,2]
[363309484,1748668238261,-888.24,0.00021108,2]
[363309485,1748668238271,-545.23,0.00021108,2]
[363309486,1748668238281,-430.0,0.00021108,2]
[363309487,1748668238291,-940.68,0.00021108,2]
[363309488,1748668238301,-7370.66,0.00021108,2]
[363309489,1748668238310,-430.0,0.00021108,2]
[363309490,1748668238320,-430.0,0.00021108,2]
[363309491,1748668238333,-665.09,0.00021108,2]
[363309492,1748668238343,-430.0,0.00021109,2]
[363309493,1748668238352,-770.14,0.00021109,2]
[363309494,1748668238362,-3000.0,0.0002111,2]
[363309495,1748668238371,-3000.0,0.0002112,2]
[363309496,1748668238381,-3000.0,0.0002113,2]
[363309497,1748668238391,-3000.0,0.0002114,2]
[363309498,1748668238400,-3000.0,0.0002115,2]
[363309499,1748668238410,-157.5499743,0.00021151,2]
[363309500,1748668238418,-3000.0,0.0002116,2]
[363309501,1748668238428,-3000.0,0.0002117,2]
[363309502,1748668238437,-3000.0,0.0002118,2]
[363309503,1748668238446,-3000.0,0.0002119,2]
[363309504,1748668238456,-250.0,0.00021194,2]
[363309505,1748668238465,-3000.0,0.000212,2]
[363309506,1748668238474,-3000.0,0.0002121,2]
[363309507,1748668238483,-3000.0,0.0002122,2]
[363309508,1748668238492,-3000.0,0.0002123,2]
[363309509,1748668238501,-151.0,0.0002123,2]
[363309510,1748668238510,-151.0,0.0002123,2]
[363309511,1748668238519,-3000.0,0.0002124,2]
[363309512,1748668238529,-599.7721329,0.00021246,2]
[363309513,1748668238539,-3000.0,0.0002125,2]
[363309514,1748668238548,-2374.76830072,0.0002125,2]
[363309515,1748668238557,-304.55430849,0.00021256,2]
[363309516,1748668238567,-3000.0,0.0002126,2]
[363309517,1748668238579,-3000.0,0.0002127,2]
[363309518,1748668238588,-151.0,0.00021279,2]
[363309519,1748668238597,-5000.0,0.00021279,2]
[363309520,1748668238606,-3000.0,0.0002128,2]
[363309521,1748668238738,-1000.0,0.00021284,2]
[363309522,1748668238750,-501.01063419,0.00021284,2]
[363309523,1748668238760,-3000.0,0.0002129,2]
[363309524,1748668238770,-3000.0,0.000213,2]
[363309525,1748668238779,-500.37680948,0.00021306,2]
[363309526,1748668238789,-500.0,0.00021306,2]
[363309527,1748668238799,-3000.0,0.0002131,2]
[363309528,1748668238808,-3000.0,0.0002132,2]
[363309529,1748668238818,-500.0,0.00021326,2]
[363309530,1748668238828,-3000.0,0.0002133,2]
[363309531,1748668238838,-500.0,0.00021337,2]
[363309532,1748668238848,-575.30694928,0.00021337,2]
[363309533,1748668238857,-501.16466585,0.00021337,2]
[363309534,1748668238867,-3000.0,0.0002134,2]
[363309535,1748668238876,-3307.061402,0.0002135,2]
[363309536,1748668238886,-500.0,0.00021356,2]
[363309537,1748668238895,-500.0,0.00021374,2]
[363309538,1748668238906,-500.0,0.00021374,2]
[363309539,1748668238915,-306.8507996,0.00021374,2]
[363309540,1748668238925,-500.0,0.00021374,2]
[363309541,1748668238934,-395.81638345,0.00021378,27]
[363309542,1748668238944,-1595.88,0.0002138,2]
[363309543,1748668238954,-606.84,0.0002138,2]
[363309544,1748668238963,-2064.51,0.0002138,2]
[363309545,1748668238973,-910.53,0.0002138,2]
[363309546,1748668238983,-875.57,0.0002138,2]
[363309547,1748668238992,-430.0,0.00021381,2]
[363309548,1748668239001,-888.24,0.00021382,2]
[363309549,1748668239011,-545.23,0.00021382,2]
[363309550,1748668239021,-430.0,0.00021382,2]
[363309551,1748668239031,-940.68,0.00021382,2]
[363309552,1748668239042,-7370.66,0.00021382,2]
[363309553,1748668239053,-430.0,0.00021382,2]
[363309554,1748668239062,-430.0,0.00021382,2]
[363309555,1748668239073,-665.09,0.00021382,2]
[363309556,1748668239083,-430.0,0.00021383,2]
[363309557,1748668239092,-770.14,0.00021383,2]
[363309558,1748668239101,-500.0,0.00021391,2]
[363309559,1748668239111,-500.0,0.00021391,2]
[363309560,1748668239122,-502.84122441,0.00021391,2]
[363309561,1748668239131,-500.0,0.00021391,2]
[363309562,1748668239140,-501.60266877,0.00021391,2]
[363309563,1748668239149,-215.99549423,0.00021391,2]
[363309564,1748668239158,-501.67135089,0.00021391,2]
[363309565,1748668239167,-500.0,0.00021391,2]
[363309566,1748668239177,-500.0,0.00021391,2]
[363309567,1748668239187,-500.0,0.00021391,2]
[363309568,1748668239196,-500.0,0.00021391,2]
[363309569,1748668239206,-160.19413256,0.00021391,2]
[363309570,1748668239215,-500.0,0.00021391,2]
[363309571,1748668239225,-341.58993269,0.00021395,2]
[363309572,1748668239235,-500.0,0.00021395,2]
[363309573,1748668239244,-500.0,0.00021395,2]
[363309574,1748668239254,-500.0,0.00021395,2]
[363309575,1748668239264,-599.7721329,0.00021405,2]
[363309576,1748668239274,-500.0,0.00021416,2]
[363309577,1748668239284,-400.49783772,0.00021416,2]
[363309578,1748668239293,-500.0,0.00021416,2]
[363309579,1748668239303,-160.18894433,0.00021416,2]
[363309580,1748668239313,-450.3400897,0.00021416,2]
[363309581,1748668239323,-500.0,0.00021416,2]
[363309582,1748668239333,-157.5499743,0.00021425,2]
[363309583,1748668239343,-800.0,0.00021452,2]
[363309584,1748668239352,-395.81638345,0.00021506,28]
[363309585,1748668239362,-2045.595871,0.0002156,3]
[363309586,1748668239371,-153.0,0.00021589,2]
[363309587,1748668239381,-153.0,0.00021589,2]
[363309588,1748668239391,-151.0,0.000216,3]
[363309589,1748668239400,-395.81638345,0.00021634,30]
[363309590,1748668239410,-1595.88,0.00021654,2]
[363309591,1748668239419,-606.84,0.00021654,2]
[363309592,1748668239429,-2064.51,0.00021654,2]
[363309593,1748668239438,-910.53,0.00021654,2]
[363309594,1748668239449,-875.57,0.00021654,2]
[363309595,1748668239459,-430.0,0.00021655,2]
[363309596,1748668239468,-888.24,0.00021656,2]
[363309597,1748668239478,-545.23,0.00021656,2]
[363309598,1748668239488,-430.0,0.00021656,2]
[363309599,1748668239498,-940.68,0.00021656,2]
[363309600,1748668239508,-7370.66,0.00021656,2]
[363309601,1748668239518,-430.0,0.00021656,2]
[363309602,1748668239527,-430.0,0.00021656,2]
[363309603,1748668239536,-665.09,0.00021656,2]
[363309604,1748668239546,-430.0,0.00021657,2]
[363309605,1748668239556,-770.14,0.00021657,2]
[363309606,1748668239565,-5000.0,0.00021697,2]
[363309607,1748668239576,-395.81638345,0.00021762,30]
[363309608,1748668239586,-599.7721333,0.00021825,2]
[363309609,1748668239596,-151.0,0.00021827,2]
[363309610,1748668239606,-151.0,0.00021827,2]
[363309611,1748668239616,-5000.0,0.00021827,2]
[363309612,1748668239624,-1500.0,0.00021832,2]
[363309613,1748668239635,-1000.0,0.00021854,2]
[363309614,1748668239645,-151.0,0.00021874,2]
[363309615,1748668239655,-151.0,0.00021874,2]
[363309616,1748668239664,-151.0,0.00021874,2]
[363309617,1748668239674,-151.0,0.00021874,2]
[363309618,1748668239683,-1000.0,0.00021874,2]
[363309619,1748668239692,-1000.0,0.00021885,2]
[363309620,1748668239702,-395.81638345,0.0002189,30]
[363309622,1748668239712,-654.24954959,0.000219,3]
[363309623,1748668239722,-1514.726438,0.000219,5]
[363309625,1748668239731,-151.0,0.000219,2]
[363309627,1748668239740,-151.0,0.000219,2]
[363309629,1748668239749,-151.0,0.000219,2]
[363309631,1748668239759,-5879.04001371,0.000219,2]
[363309633,1748668239769,-1000.0,0.00021904,2]
[363309635,1748668239778,-200.0,0.00021917,2]
[363309637,1748668239787,-3742.59133857,0.00021917,2]
[363309639,1748668239796,-12500.0,0.00021917,2]
[363309641,1748668239805,-519.81,0.00021917,2]
[363309643,1748668239814,-1000.0,0.0002192,5]
[363309645,1748668239824,-1001.66769588,0.00021922,2]
[363309646,1748668239833,-1000.0,0.00021922,2]
[363309648,1748668239843,-1000.0,0.00021922,2]
[363309651,1748668239853,-1595.88,0.00021928,2]
[363309652,1748668239863,-606.84,0.00021928,2]
[363309654,1748668239873,-2064.51,0.00021928,2]
[363309656,1748668239883,-910.53,0.00021928,2]
[363309658,1748668239892,-875.57,0.00021928,2]
[363309660,1748668239901,-430.0,0.00021929,2]
[363309662,1748668239911,-888.24,0.0002193,2]
[363309664,1748668239920,-545.23,0.0002193,2]
[363309666,1748668239930,-430.0,0.0002193,2]
[363309668,1748668239939,-940.68,0.0002193,2]
[363309670,1748668239949,-7370.66,0.0002193,2]
[363309672,1748668239959,-430.0,0.0002193,2]
[363309674,1748668239969,-430.0,0.0002193,2]
[363309676,1748668239979,-665.09,0.0002193,2]
[363309678,1748668239988,-353.0517678,0.00021931,2]
[363309680,1748668239998,-770.14,0.00021931,2]
[363309682,1748668240007,-1000.0,0.00021939,2]
[363309684,1748668240017,-1000.0,0.00021939,2]
[363309686,1748668240027,-500.0,0.00021939,2]
[363309688,1748668240039,-503.78201523,0.00021939,2]
[363309690,1748668240050,-500.0,0.00021939,2]
[363309692,1748668240059,-1000.0,0.00021939,2]
[363309694,1748668240068,-1000.0,0.0002194,5]
[363309696,1748668240079,-1000.0,0.00021943,2]
[363309698,1748668240089,-570.39206092,0.00021943,2]
[363309700,1748668240098,-1000.0,0.0002196,5]
[363309702,1748668240107,-1004.78597977,0.00021964,2]
[363309704,1748668240117,-544.81157461,0.00021964,2]
[363309706,1748668240128,-500.0,0.00021973,2]
[363309708,1748668240138,-503.32993112,0.00021973,2]
[363309710,1748668240147,-554.54632245,0.00021973,2]
[363309712,1748668240156,-500.0,0.00021973,2]
[363309714,1748668240166,-505.01652487,0.00021973,2]
[363309716,1748668240176,-538.80581164,0.00021973,2]
[363309718,1748668240185,-500.0,0.00021973,2]
[363309720,1748668240195,-500.9753311,0.00021973,2]
[363309722,1748668240204,-600.0,0.00021973,2]
[363309724,1748668240213,-500.0,0.00021973,2]
[363309726,1748668240224,-1000.0,0.0002198,5]
[363309728,1748668240233,-160.0,0.00021995,5]
[363309730,1748668240242,-28863.15065778,0.00022,3]
[363309732,1748668240251,-120031.12784681,0.00022,2]
[363309734,1748668240261,-500.0,0.00022,8]
[363309736,1748668240271,-261057.92253924,0.00022,2]
[363309738,1748668240290,-33822.89018173,0.00022,2]
[363309740,1748668240302,-34222.78557002,0.00022,2]
[363309742,1748668240311,-2000.0,0.00022,2]
[363309744,1748668240321,-3232.0,0.00022,2]
[363309746,1748668240332,-1037.93,0.00022,7]
[363309749,1748668240346,-1030.0,0.00022,2]
[363309750,1748668240360,-10653.46,0.00022,2]
[363309752,1748668240369,-25573.82442998,0.00022,2]
[363309756,1748668240399,537.06,0.00017269,2]
[363309759,1748668240415,-52122.0,0.00022,2]
[363309775,1748668240569,-151.0,0.0002133,2]
[363309777,1748668240582,-619.67,0.00022,2]
[363310061,1748668243603,-300.0,0.00021415,2]
[363310063,1748668243613,-711.0,0.0002199,10]
[363310075,1748668243714,-287.41,0.0002199,10]
[363310349,1748668246170,-1680.89,0.0002199,10]
[363310351,1748668246180,-2890.91929818,0.00022,2]
[363310365,1748668246538,-898.25008064,0.00022,2]
[363310505,1748668247882,430.0,0.00016998,2]
[363310509,1748668247911,430.0,0.00016999,2]
[363310834,1748668251266,430.0,0.00016995,2]
[363310835,1748668251524,430.0,0.00017269,2]
[363310836,1748668251780,430.0,0.00017543,2]
[363310855,1748668252062,430.0,0.00017817,2]
[363311344,1748668259323,430.0,0.00016998,2]
[363311371,1748668259569,430.0,0.00017272,2]
[363311398,1748668259811,430.0,0.00017546,2]
[363311425,1748668260066,430.0,0.0001782,2]
[363311454,1748668260345,430.0,0.00016995,2]
[363311835,1748668264371,680.79,0.00016995,2]
[363311861,1748668264626,680.79,0.00017269,2]
[363311892,1748668264899,680.79,0.00017543,2]
[363311919,1748668265145,680.79,0.00017817,2]
[363312130,1748668267258,430.0,0.00016995,2]
[363312158,1748668267538,430.0,0.00017269,2]
[363312184,1748668267782,430.0,0.00017543,2]
[363312209,1748668268019,430.0,0.00017817,2]
[363312455,1748668270834,430.0,0.00016997,2]
[363312472,1748668271078,430.0,0.00017271,2]
[363312501,1748668271340,430.0,0.00017545,2]
[363312530,1748668271601,430.0,0.00017819,2]
[363312736,1748668274681,1845.79,0.00016998,2]
[363312767,1748668274984,1845.79,0.00017272,2]
[363312796,1748668275266,1845.79,0.00017546,2]
[363312963,1748668276894,430.0,0.00016995,2]
[363312966,1748668276921,1845.79,0.0001782,2]
[363312990,1748668280355,430.0,0.00016995,2]
[363312991,1748668290215,430.0,0.00016995,2]
[363312992,1748668290455,430.0,0.00017269,2]
[363312993,1748668290724,430.0,0.00017543,2]
[363312994,1748668290779,200.0,0.00023683,120]
[363312995,1748668291079,430.0,0.00017817,2]
[363312996,1748668293734,430.0,0.00016997,2]
[363312997,1748668293770,430.0,0.00016997,2]
[363312998,1748668294127,430.0,0.00017271,2]
[363312999,1748668294159,430.0,0.00017271,2]
[363313000,1748668294236,430.0,0.00017545,2]
[363313001,1748668294299,430.0,0.00017545,2]
[363313002,1748668294488,430.0,0.00017819,2]
[363313003,1748668294696,430.0,0.00017819,2]
[363313004,1748668304920,430.0,0.00016995,2]
[363313005,1748668305163,430.0,0.00017269,2]
[363313006,1748668305439,430.0,0.00017543,2]
[363313007,1748668305699,430.0,0.00017817,2]
[363313008,1748668309861,430.0,0.00016998,2]
[363313009,1748668310125,430.0,0.00017272,2]
[363313010,1748668310364,430.0,0.00017546,2]
[363313011,1748668310610,430.0,0.0001782,2]
[363313012,1748668312841,430.0,0.00016995,2]
[363313013,1748668313086,430.0,0.00017269,2]
[363313014,1748668313349,430.0,0.00017543,2]
[363313015,1748668313608,430.0,0.00017817,2]
[363313017,1748668320641,430.0,0.00016997,2]
[363313018,1748668320793,430.0,0.00017271,2]
[363313019,1748668321032,430.0,0.00017545,2]
[363313020,1748668323980,430.0,0.00016996,2]
[363313021,1748668366549,-430.0,0.00016995,2]
[363313022,1748668366573,-430.0,0.00016995,2]
[363313023,1748668366598,-430.0,0.00016995,2]
[363313024,1748668366623,-430.0,0.00016996,2]
[363313025,1748668366648,-509.88,0.00016997,2]
[363313026,1748668366671,-430.0,0.00016997,2]
[363313027,1748668366694,-430.0,0.00017269,2]
[363313028,1748668366716,-430.0,0.00017269,2]
[363313029,1748668366741,-430.0,0.00017269,2]
[363313030,1748668366764,-430.0,0.00017271,2]
[363313031,1748668366787,-192.12,0.00017543,2]
[363313032,1748668411258,200.0,0.00024597,120]
[363313033,1748668455687,160.746744,0.00013699,2]
[363313035,1748668470830,200.0,0.00024654,120]
[363313036,1748668503116,425.56775706,0.00021918,60]
[363313037,1748668530729,200.0,0.00023192,120]
[363313038,1748668590722,200.0,0.00023967,120]
[363313039,1748668699956,-160.0,0.00016106,2]
[363313040,1748669133282,1513.0,0.00024657,120]
[363313041,1748669154137,-36.283637,0.00016106,2]
[363313042,1748669154159,-179.68273328,0.00016486,2]
[363313043,1748669154179,-2082.43582089,0.00016697,2]
[363313045,1748669222937,-1880.0,0.00016085,2]
[363313046,1748669229174,-120.0,0.00016085,2]
[363313047,1748669229197,-1231.18293629,0.00016697,2]
[363313048,1748669230098,-832.86958774,0.00016697,2]
[363313049,1748669230128,-160.0,0.00016893,2]
[363313050,1748669230161,-195.10666543,0.00016894,2]
[363313051,1748669230189,-195.10666541,0.00016895,2]
[363313052,1748669230215,-195.10666541,0.00016895,2]
[363313053,1748669230244,-300.0,0.00016993,2]
[363313054,1748669230270,-474.0,0.00016994,2]
[363313055,1748669230299,-199.92795882,0.00016994,2]
[363313056,1748669238314,-100.07204118,0.00016994,2]
[363313057,1748669238341,-78.7525301,0.00016994,2]
[363313058,1748669242102,-351.2474699,0.00016994,2]
[363313059,1748669242129,-430.0,0.00016994,2]
[363313060,1748669242166,-430.0,0.00016994,2]
[363313061,1748669242205,-832.29,0.00016994,2]
[363313062,1748669242238,-79.68798887,0.00016994,2]
[363313063,1748669254098,-350.31201113,0.00016994,2]
[363313064,1748669254125,-696.4,0.00016994,2]
[363313065,1748669254151,-430.0,0.00016995,2]
[363313066,1748669254180,-1386.68,0.00016995,2]
[363313067,1748669254204,-430.0,0.00016995,2]
[363313068,1748669254228,-430.0,0.00016995,2]
[363313069,1748669254254,-568.46,0.00016995,2]
[363313070,1748669254280,-620.51,0.00016995,2]
[363313071,1748669254302,-430.0,0.00016995,2]
[363313072,1748669254326,-430.0,0.00016995,2]
[363313073,1748669254351,-430.0,0.00016995,2]
[363313074,1748669254375,-430.0,0.00016995,2]
[363313075,1748669254401,-430.0,0.00016995,2]
[363313076,1748669254429,-430.0,0.00016995,2]
[363313077,1748669254452,-430.0,0.00016995,2]
[363313078,1748669254475,-430.0,0.00016995,2]
[363313079,1748669254502,-430.0,0.00016995,2]
[363313080,1748669254523,-430.0,0.00016995,2]
[363313081,1748669254546,-181.83062994,0.00016996,2]
[363313082,1748669254569,-430.0,0.00016996,2]
[363313083,1748669254590,-430.0,0.00016996,2]
[363313084,1748669254612,-430.0,0.00016996,2]
[363313085,1748669254634,-430.0,0.00016996,2]
[363313086,1748669254658,-430.0,0.00016996,2]
[363313087,1748669254680,-430.0,0.00016996,2]
[363313088,1748669254702,-430.0,0.00016996,2]
[363313089,1748669254723,-430.0,0.00016996,2]
[363313090,1748669254745,-430.0,0.00016997,2]
[363313091,1748669254767,-184.53971869,0.00016997,2]
[363313092,1748669254789,-430.0,0.00016997,2]
[363313093,1748669254810,-430.0,0.00016997,2]
[363313094,1748669254831,-430.0,0.00016997,2]
[363313095,1748669254852,-430.0,0.00016997,2]
[363313096,1748669254873,-430.0,0.00016997,2]
[363313097,1748669254896,-464.98331165,0.00016997,2]
[363313098,1748669254919,-430.0,0.00017268,2]
[363313099,1748669254943,-430.0,0.00017268,2]
[363313100,1748669254967,-832.29,0.00017268,2]
[363313101,1748669254990,-430.0,0.00017268,2]
[363313102,1748669255014,-696.4,0.00017268,2]
[363313103,1748669255038,-430.0,0.00017269,2]
[363313104,1748669255063,-1386.68,0.00017269,2]
[363313105,1748669255088,-430.0,0.00017269,2]
[363313106,1748669255112,-214.15,0.00017269,2]
[363313107,1748669255135,-568.46,0.00017269,2]
[363313108,1748669255159,-620.51,0.00017269,2]
[363313109,1748669255182,-430.0,0.00017269,2]
[363313110,1748669255206,-430.0,0.00017269,2]
[363313111,1748669255229,-430.0,0.00017269,2]
[363313112,1748669255252,-430.0,0.00017269,2]
[363313113,1748669255275,-430.0,0.00017269,2]
[363313114,1748669255296,-430.0,0.0001727,2]
[363313115,1748669255318,-430.0,0.0001727,2]
[363313116,1748669255340,-430.0,0.0001727,2]
[363313117,1748669255362,-430.0,0.0001727,2]
[363313118,1748669255383,-430.0,0.0001727,2]
[363313119,1748669255411,-430.0,0.0001727,2]
[363313120,1748669255434,-430.0,0.0001727,2]
[363313121,1748669255456,-430.0,0.00017271,2]
[363313122,1748669255477,-430.0,0.00017271,2]
[363313123,1748669255499,-430.0,0.00017271,2]
[363313124,1748669255521,-430.0,0.00017542,2]
[363313125,1748669255544,-430.0,0.00017542,2]
[363313126,1748669255570,-832.29,0.00017542,2]
[363313127,1748669255594,-430.0,0.00017542,2]
[363313128,1748669255618,-696.4,0.00017542,2]
[363313129,1748669255641,-430.0,0.00017543,2]
[363313130,1748669255664,-1386.68,0.00017543,2]
[363313131,1748669255688,-430.0,0.00017543,2]
[363313132,1748669255712,-568.46,0.00017543,2]
[363313133,1748669255736,-620.51,0.00017543,2]
[363313134,1748669255760,-430.0,0.00017543,2]
[363313135,1748669255783,-430.0,0.00017543,2]
[363313136,1748669255806,-430.0,0.00017543,2]
[363313137,1748669255828,-430.0,0.00017544,2]
[363313138,1748669255850,-430.0,0.00017544,2]
[363313139,1748669255871,-430.0,0.00017544,2]
[363313140,1748669255892,-430.0,0.00017544,2]
[363313141,1748669255914,-430.0,0.00017544,2]
[363313142,1748669255937,-430.0,0.00017544,2]
[363313143,1748669255958,-430.0,0.00017544,2]
[363313144,1748669255981,-542.38,0.00017545,2]
[363313145,1748669256003,-430.0,0.00017545,2]
[363313146,1748669256025,-430.0,0.00017816,2]
[363313147,1748669256049,-430.0,0.00017816,2]
[363313148,1748669256073,-832.29,0.00017816,2]
[363313149,1748669256096,-430.0,0.00017816,2]
[363313150,1748669256121,-696.4,0.00017816,2]
[363313151,1748669256145,-430.0,0.00017817,2]
[363313152,1748669256169,-1386.68,0.00017817,2]
[363313153,1748669256192,-430.0,0.00017817,2]
[363313154,1748669256216,-568.46,0.00017817,2]
[363313155,1748669256241,-620.51,0.00017817,2]
[363313156,1748669256265,-430.0,0.00017817,2]
[363313157,1748669256289,-430.0,0.00017817,2]
[363313158,1748669256313,-430.0,0.00017817,2]
[363313159,1748669256336,-437.55687434,0.00017818,2]
[363313160,1748669256359,-405.51665021,0.00017818,2]
[363313161,1748669256382,-430.0,0.00017818,2]
[363313162,1748669256407,-430.0,0.00017818,2]
[363313163,1748669256433,-407.59634751,0.00017818,2]
[363313164,1748669256457,-430.0,0.00017818,2]
[363313165,1748669256482,-430.0,0.00017818,2]
[363313166,1748669256506,-430.0,0.00017818,2]
[363313167,1748669256529,-430.0,0.00017818,2]
[363313168,1748669256552,-430.0,0.00017818,2]
[363313169,1748669256576,-430.0,0.00017818,2]
[363313170,1748669256599,-370.0,0.00017818,2]
[363313171,1748669256621,-430.0,0.00017818,2]
[363313172,1748669256644,-199.08,0.00017818,2]
[363313173,1748669256668,-430.0,0.00017818,2]
[363313174,1748669256692,-430.0,0.00017818,2]
[363313175,1748669256717,-430.0,0.00017818,2]
[363313176,1748669256739,-430.0,0.00017818,2]
[363313177,1748669256761,-430.0,0.00017818,2]
[363313178,1748669256783,-310.4136684,0.00017818,2]
[363313179,1748669256805,-430.0,0.00017818,2]
[363313180,1748669256827,-430.0,0.00017818,2]
[363313181,1748669256849,-409.95827375,0.00017818,2]
[363313182,1748669256872,-430.0,0.00017818,2]
[363313183,1748669256895,-430.0,0.00017818,2]
[363313184,1748669257061,-430.0,0.00017818,2]
[363313185,1748669257091,-1315.59531697,0.000179,2]
[363313186,1748669257115,-430.0,0.0001809,2]
[363313187,1748669257141,-286.04563379,0.0001809,2]
[363313188,1748669257167,-500.0,0.0001809,2]
[363313189,1748669257193,-500.0,0.0001809,2]
[363313190,1748669257220,-290.38870125,0.0001809,2]
[363313191,1748669257246,-500.0,0.0001809,2]
[363313192,1748669257271,-617.30944339,0.0001809,2]
[363313193,1748669257295,-832.29,0.0001809,2]
[363313194,1748669257323,-226.09,0.0001809,2]
[363313195,1748669257347,-696.4,0.0001809,2]
[363313196,1748669257371,-430.0,0.00018091,2]
[363313197,1748669257395,-615.58691508,0.00018091,2]
[363313198,1748669268048,152.43385232,0.000246,120]
[363313201,1748669315049,1288.74181999,0.00024,120]
[363313203,1748669318695,3521.0741398,0.0002,120]
[363313204,1748669322794,332.55984873,0.0002191,120]
[363313205,1748669354084,-304.0,0.000165,2]
[363313206,1748669354107,-287.0,0.00016993,2]
[363313207,1748669354131,-731.45386401,0.00016994,2]
[363313216,1748669369123,-484.48613599,0.00016994,2]
[363313217,1748669369148,-430.0,0.00016994,2]
[363313218,1748669369173,-473.72,0.00016994,2]
[363313219,1748669369198,-517.09,0.00016994,2]
[363313220,1748669369223,-430.0,0.00016994,2]
[363313221,1748669369246,-430.0,0.00016994,2]
[363313222,1748669369268,-430.0,0.00016995,2]
[363313223,1748669369292,-430.0,0.00016995,2]
[363313224,1748669369315,-430.0,0.00016995,2]
[363313225,1748669369338,-1215.94,0.00017268,2]
[363313226,1748669369360,-430.0,0.00017268,2]
[363313227,1748669369384,-473.72,0.00017268,2]
[363313228,1748669369407,-517.09,0.00017268,2]
[363313229,1748669369431,-430.0,0.00017268,2]
[363313230,1748669369458,-430.0,0.00017268,2]
[363313231,1748669369480,-573.34,0.00017269,2]
[363313232,1748669369504,-333.42756497,0.00017269,2]
[363313238,1748669425265,160.746744,0.00013699,2]
[363313264,1748669433802,-235.91393986,0.00016697,2]
[363313265,1748669433831,-693.6498137,0.00016697,2]
[363313266,1748669433840,-203.91913958,0.00016883,2]
[363313267,1748669433850,-189.87791265,0.00016995,2]
[363313268,1748669433859,-430.0,0.00016995,2]
[363313269,1748669433869,-430.0,0.00017268,2]
[363313270,1748669433879,-96.57243503,0.00017269,2]
[363313271,1748669433888,-430.0,0.00017269,2]
[363313272,1748669433898,-1215.94,0.00017542,2]